[Event "Early-Titled-Tuesday-Blitz-March-26-2024"]
[Site "Chess.com"]
[Date "2024.03.26"]
[Round "5"]
[White "Bykov_Egor"]
[Black "BlueWizzard"]
[Result "0-1"]
[WhiteElo "2651"]
[BlackElo "2859"]
[TimeControl "180+1"]
[EndTime "8:53:28 PDT"]
[Termination "BlueWizzard won on time"]

1. e4 {[%clk 0:02:54.5]} 1... g6 {[%clk 0:03:00.9]} 2. d4 {[%clk 0:02:51.2]}
2... d5 {[%clk 0:03:01.1]} 3. exd5 {[%clk 0:02:47.9]} 3... Qxd5 {[%clk 0:03:02]}
4. c4 {[%clk 0:02:41.7]} 4... Qd8 {[%clk 0:03:02]} 5. Nc3 {[%clk 0:02:39.8]}
5... Bg7 {[%clk 0:03:02.6]} 6. Be3 {[%clk 0:02:29.6]} 6... Nh6 {[%clk
0:03:03.2]} 7. Nf3 {[%clk 0:02:10.3]} 7... Nf5 {[%clk 0:03:03]} 8. Be2 {[%clk
0:02:04.7]} 8... O-O {[%clk 0:02:53.9]} 9. O-O {[%clk 0:02:03.1]} 9... c5 {[%clk
0:02:54.1]} 10. dxc5 {[%clk 0:01:47.1]} 10... Nxe3 {[%clk 0:02:52.4]} 11. fxe3
{[%clk 0:01:47.7]} 11... Bxc3 {[%clk 0:02:41.7]} 12. bxc3 {[%clk 0:01:46.9]}
12... Na6 {[%clk 0:02:35.6]} 13. Qd4 {[%clk 0:01:40.6]} 13... Qc7 {[%clk
0:02:33.7]} 14. Ng5 {[%clk 0:01:38.2]} 14... f6 {[%clk 0:02:30]} 15. Bf3 {[%clk
0:00:55]} 15... Nxc5 {[%clk 0:02:11.5]} 16. Bd5+ {[%clk 0:00:49.9]} 16... Kg7
{[%clk 0:02:07.1]} 17. Qh4 {[%clk 0:00:25.7]} 17... fxg5 {[%clk 0:01:47.8]} 18.
Qxg5 {[%clk 0:00:24.9]} 18... Bf5 {[%clk 0:01:36.2]} 19. Rf4 {[%clk 0:00:18.9]}
19... h6 {[%clk 0:01:26.8]} 20. Qg3 {[%clk 0:00:17.7]} 20... Nd3 {[%clk
0:01:22.5]} 21. Rd4 {[%clk 0:00:09.9]} 21... Qxg3 {[%clk 0:01:20.4]} 22. hxg3
{[%clk 0:00:10.8]} 22... e5 {[%clk 0:01:18.8]} 23. Rh4 {[%clk 0:00:09.2]} 23...
g5 {[%clk 0:01:15.9]} 24. Rh1 {[%clk 0:00:09.8]} 24... Nc5 {[%clk 0:00:59.4]}
25. Rd1 {[%clk 0:00:04.4]} 25... Rad8 {[%clk 0:00:51.5]} 26. Rd2 {[%clk
0:00:03.9]} 26... Ne4 {[%clk 0:00:47.5]} 27. Rb2 {[%clk 0:00:03.5]} 27... b6
{[%clk 0:00:47.9]} 28. g4 {[%clk 0:00:02.6]} 28... Bg6 {[%clk 0:00:46.1]} 29.
Rh3 {[%clk 0:00:03]} 29... Nxc3 {[%clk 0:00:45.3]} 30. Bc6 {[%clk 0:00:02.8]}
30... Rd1+ {[%clk 0:00:43.7]} 31. Kh2 {[%clk 0:00:03.1]} 31... Be4 {[%clk
0:00:42.5]} 32. Bxe4 {[%clk 0:00:01.4]} 32... Nxe4 {[%clk 0:00:43.4]} 0-1

[Event "Early-Titled-Tuesday-Blitz-March-26-2024"]
[Site "Chess.com"]
[Date "2024.03.26"]
[Round "5"]
[White "jaskol95"]
[Black "Kapitan_Bayan"]
[Result "1-0"]
[WhiteElo "2476"]
[BlackElo "2289"]
[TimeControl "180+1"]
[EndTime "8:53:30 PDT"]
[Termination "jaskol95 won by checkmate"]

1. e4 {[%clk 0:03:00.9]} 1... c5 {[%clk 0:02:58.7]} 2. Nf3 {[%clk 0:03:01]} 2...
d6 {[%clk 0:02:58.5]} 3. Bb5+ {[%clk 0:02:58.6]} 3... Nd7 {[%clk 0:02:57.5]} 4.
a4 {[%clk 0:02:58.5]} 4... Nf6 {[%clk 0:02:55.7]} 5. Nc3 {[%clk 0:02:58.2]} 5...
a6 {[%clk 0:02:53.9]} 6. Bc4 {[%clk 0:02:58.3]} 6... e6 {[%clk 0:02:52.8]} 7. d3
{[%clk 0:02:53.6]} 7... Be7 {[%clk 0:02:51.8]} 8. O-O {[%clk 0:02:48.9]} 8...
O-O {[%clk 0:02:51.4]} 9. a5 {[%clk 0:02:49.4]} 9... Nb8 {[%clk 0:02:49.9]} 10.
Bd2 {[%clk 0:02:48.1]} 10... Nc6 {[%clk 0:02:49.2]} 11. Ne2 {[%clk 0:02:41.9]}
11... d5 {[%clk 0:02:43.2]} 12. exd5 {[%clk 0:02:39.1]} 12... exd5 {[%clk
0:02:44.1]} 13. Bb3 {[%clk 0:02:38.9]} 13... Bg4 {[%clk 0:02:34.4]} 14. Kh1
{[%clk 0:02:15.7]} 14... Qd7 {[%clk 0:01:55.1]} 15. c3 {[%clk 0:02:14.8]} 15...
Bxf3 {[%clk 0:01:48.4]} 16. gxf3 {[%clk 0:02:15]} 16... Qf5 {[%clk 0:01:42.9]}
17. Ng3 {[%clk 0:02:02.9]} 17... Qxd3 {[%clk 0:01:34.5]} 18. Bc2 {[%clk
0:02:03.3]} 18... Qc4 {[%clk 0:01:33.5]} 19. Rg1 {[%clk 0:01:49.3]} 19... g6
{[%clk 0:00:38.5]} 20. Nf5 {[%clk 0:01:49.1]} 20... Rfe8 {[%clk 0:00:33]} 21.
Nxe7+ {[%clk 0:01:41.4]} 21... Rxe7 {[%clk 0:00:32.9]} 22. Bg5 {[%clk
0:01:41.1]} 22... Re6 {[%clk 0:00:29.5]} 23. Bd3 {[%clk 0:01:39.5]} 23... Qxd3
{[%clk 0:00:08.2]} 24. Qxd3 {[%clk 0:01:38.8]} 24... Ne5 {[%clk 0:00:09.1]} 25.
Qe3 {[%clk 0:01:28.8]} 25... Neg4 {[%clk 0:00:06.2]} 26. Qxc5 {[%clk 0:01:16.9]}
26... Ne5 {[%clk 0:00:05.5]} 27. Rae1 {[%clk 0:00:55.1]} 27... Rae8 {[%clk
0:00:04.1]} 28. Rxe5 {[%clk 0:00:50.3]} 28... Nd7 {[%clk 0:00:01.9]} 29. Rxe6
{[%clk 0:00:50]} 29... Nxc5 {[%clk 0:00:02.1]} 30. Rxe8+ {[%clk 0:00:50.2]}
30... Kg7 {[%clk 0:00:03]} 31. Be3 {[%clk 0:00:50.2]} 31... Nd3 {[%clk
0:00:02.9]} 32. Bd4+ {[%clk 0:00:50.4]} 32... f6 {[%clk 0:00:02.6]} 33. Rge1
{[%clk 0:00:50.1]} 33... Kh6 {[%clk 0:00:02.8]} 34. Bxf6 {[%clk 0:00:49.3]}
34... Nxe1 {[%clk 0:00:02.9]} 35. Rxe1 {[%clk 0:00:48.7]} 35... d4 {[%clk
0:00:03.4]} 36. Re4 {[%clk 0:00:48.7]} 36... b5 {[%clk 0:00:04.3]} 37. Rh4#
{[%clk 0:00:49.3]} 1-0

[Event "Early-Titled-Tuesday-Blitz-March-26-2024"]
[Site "Chess.com"]
[Date "2024.03.26"]
[Round "5"]
[White "AlexeiShirov"]
[Black "tetrix83"]
[Result "1-0"]
[WhiteElo "2847"]
[BlackElo "2623"]
[TimeControl "180+1"]
[EndTime "8:53:41 PDT"]
[Termination "AlexeiShirov won on time"]

1. e4 {[%clk 0:03:00.9]} 1... c5 {[%clk 0:02:59.9]} 2. Nf3 {[%clk 0:03:00.2]}
2... e6 {[%clk 0:02:58.6]} 3. d4 {[%clk 0:02:59.5]} 3... cxd4 {[%clk 0:02:59.2]}
4. Nxd4 {[%clk 0:02:59.1]} 4... a6 {[%clk 0:02:58.3]} 5. c4 {[%clk 0:02:58.6]}
5... Qc7 {[%clk 0:02:58.1]} 6. Nc3 {[%clk 0:02:57.5]} 6... Nf6 {[%clk
0:02:58.5]} 7. a3 {[%clk 0:02:54.8]} 7... b6 {[%clk 0:02:57.6]} 8. Be3 {[%clk
0:02:52.8]} 8... Bb7 {[%clk 0:02:58.1]} 9. f3 {[%clk 0:02:51.6]} 9... d6 {[%clk
0:02:57.1]} 10. Rc1 {[%clk 0:02:40.7]} 10... Be7 {[%clk 0:02:56.3]} 11. g4
{[%clk 0:02:36.4]} 11... O-O {[%clk 0:02:55.7]} 12. g5 {[%clk 0:02:35.6]} 12...
Nfd7 {[%clk 0:02:51.8]} 13. h4 {[%clk 0:02:31.7]} 13... Qd8 {[%clk 0:02:43.9]}
14. g6 {[%clk 0:02:07.5]} 14... hxg6 {[%clk 0:02:27.2]} 15. h5 {[%clk
0:02:06.1]} 15... e5 {[%clk 0:02:27.5]} 16. Nc2 {[%clk 0:01:53.3]} 16... gxh5
{[%clk 0:02:20.8]} 17. Rxh5 {[%clk 0:01:52]} 17... Bh4+ {[%clk 0:02:18.5]} 18.
Ke2 {[%clk 0:01:50]} 18... g6 {[%clk 0:02:17.3]} 19. Rxh4 {[%clk 0:01:38.6]}
19... Qxh4 {[%clk 0:02:16.5]} 20. Qxd6 {[%clk 0:01:38]} 20... Nf6 {[%clk
0:01:46.2]} 21. Qxb6 {[%clk 0:01:20.7]} 21... Bc8 {[%clk 0:01:42.8]} 22. Nb4
{[%clk 0:01:16.9]} 22... Nbd7 {[%clk 0:01:41.2]} 23. Qd6 {[%clk 0:01:15.5]}
23... Nh5 {[%clk 0:01:12.9]} 24. Ncd5 {[%clk 0:01:14.5]} 24... Qh2+ {[%clk
0:00:44.6]} 25. Bf2 {[%clk 0:01:13.5]} 25... Ng3+ {[%clk 0:00:44.7]} 26. Ke3
{[%clk 0:01:12.7]} 26... Qh6+ {[%clk 0:00:39.3]} 27. f4 {[%clk 0:01:08.6]} 27...
Nxf1+ {[%clk 0:00:37.4]} 28. Rxf1 {[%clk 0:01:07.1]} 28... exf4+ {[%clk
0:00:33.1]} 29. Kd2 {[%clk 0:01:03.5]} 29... Qh3 {[%clk 0:00:13.3]} 30. Rg1
{[%clk 0:01:01]} 30... Qh2 {[%clk 0:00:06.1]} 31. Ke1 {[%clk 0:00:57.2]} 31...
Qh5 {[%clk 0:00:01.3]} 32. Bd4 {[%clk 0:00:44.9]} 32... Re8 {[%clk 0:00:01.5]}
33. Ne7+ {[%clk 0:00:38.9]} 33... Rxe7 {[%clk 0:00:01.4]} 34. Qxe7 {[%clk
0:00:38.1]} 1-0

[Event "Early-Titled-Tuesday-Blitz-March-26-2024"]
[Site "Chess.com"]
[Date "2024.03.26"]
[Round "5"]
[White "CrushingKings"]
[Black "KorolDimitriy75"]
[Result "1-0"]
[WhiteElo "2577"]
[BlackElo "2378"]
[TimeControl "180+1"]
[EndTime "8:53:42 PDT"]
[Termination "CrushingKings won on time"]

1. Nf3 {[%clk 0:03:00.9]} 1... c5 {[%clk 0:02:45.3]} 2. g3 {[%clk 0:03:00.2]}
2... g6 {[%clk 0:02:45.4]} 3. Bg2 {[%clk 0:02:59.8]} 3... Bg7 {[%clk 0:02:46.3]}
4. O-O {[%clk 0:02:59.8]} 4... Nc6 {[%clk 0:02:46.6]} 5. c4 {[%clk 0:02:59.9]}
5... Nh6 {[%clk 0:02:46.2]} 6. e3 {[%clk 0:02:48.7]} 6... Nf5 {[%clk 0:02:46.6]}
7. g4 {[%clk 0:02:48.8]} 7... Nh6 {[%clk 0:02:33.6]} 8. h3 {[%clk 0:02:48.4]}
8... f5 {[%clk 0:02:31.3]} 9. g5 {[%clk 0:02:37.2]} 9... Nf7 {[%clk 0:02:30.5]}
10. d4 {[%clk 0:02:38]} 10... O-O {[%clk 0:02:11.2]} 11. Nc3 {[%clk 0:02:34.3]}
11... d6 {[%clk 0:01:59.3]} 12. h4 {[%clk 0:02:25.1]} 12... e5 {[%clk
0:01:35.5]} 13. Nd5 {[%clk 0:02:24.6]} 13... exd4 {[%clk 0:01:17.1]} 14. exd4
{[%clk 0:02:24]} 14... cxd4 {[%clk 0:01:10.8]} 15. Re1 {[%clk 0:02:22.8]} 15...
Nfe5 {[%clk 0:01:09.4]} 16. Bf4 {[%clk 0:02:06.7]} 16... Kh8 {[%clk 0:00:58.1]}
17. Kh1 {[%clk 0:02:04.4]} 17... Nxc4 {[%clk 0:00:42.9]} 18. Qb3 {[%clk
0:01:59]} 18... N4e5 {[%clk 0:00:42.3]} 19. Rad1 {[%clk 0:01:56.4]} 19... Be6
{[%clk 0:00:26.1]} 20. Nxd4 {[%clk 0:01:52.2]} 20... Nxd4 {[%clk 0:00:17.7]} 21.
Rxd4 {[%clk 0:01:52.8]} 21... Qd7 {[%clk 0:00:14.3]} 22. Rd2 {[%clk 0:01:49.1]}
22... Rac8 {[%clk 0:00:13.3]} 23. Qg3 {[%clk 0:01:33.8]} 23... Qf7 {[%clk
0:00:12.4]} 24. b3 {[%clk 0:01:27.2]} 24... Rfe8 {[%clk 0:00:11.2]} 25. Red1
{[%clk 0:01:26.3]} 25... b6 {[%clk 0:00:09.5]} 26. Nb4 {[%clk 0:01:17.1]} 26...
Rcd8 {[%clk 0:00:08.7]} 27. Rxd6 {[%clk 0:01:12.6]} 27... Rxd6 {[%clk
0:00:09.6]} 28. Rxd6 {[%clk 0:01:12.6]} 28... Ng4 {[%clk 0:00:07.8]} 29. f3
{[%clk 0:00:59.8]} 29... Bf8 {[%clk 0:00:06.1]} 30. fxg4 {[%clk 0:00:46.3]}
30... Bxd6 {[%clk 0:00:06.1]} 31. Bxd6 {[%clk 0:00:47]} 31... fxg4 {[%clk
0:00:06.1]} 32. Be5+ {[%clk 0:00:47]} 32... Kg8 {[%clk 0:00:04.9]} 33. Bf6
{[%clk 0:00:47.7]} 33... Rc8 {[%clk 0:00:02.6]} 34. Nc6 {[%clk 0:00:46.9]} 34...
Qd7 {[%clk 0:00:01.6]} 35. Ne7+ {[%clk 0:00:47]} 35... Kf7 {[%clk 0:00:01]} 36.
Nxc8 {[%clk 0:00:46.8]} 36... Qxc8 {[%clk 0:00:01.9]} 37. Qd6 {[%clk 0:00:44.7]}
37... Qc1+ {[%clk 0:00:01]} 38. Kh2 {[%clk 0:00:45.2]} 38... Qe1 {[%clk
0:00:01.3]} 39. Qe7+ {[%clk 0:00:44.3]} 1-0

[Event "Early-Titled-Tuesday-Blitz-March-26-2024"]
[Site "Chess.com"]
[Date "2024.03.26"]
[Round "5"]
[White "Iskusnyh"]
[Black "flawian2008"]
[Result "0-1"]
[WhiteElo "2623"]
[BlackElo "2386"]
[TimeControl "180+1"]
[EndTime "8:53:43 PDT"]
[Termination "flawian2008 won on time"]

1. d4 {[%clk 0:03:00.8]} 1... Nf6 {[%clk 0:03:00.2]} 2. c4 {[%clk 0:02:59.1]}
2... c5 {[%clk 0:03:00.5]} 3. d5 {[%clk 0:02:58.5]} 3... b5 {[%clk 0:03:00.8]}
4. Qc2 {[%clk 0:02:54.2]} 4... b4 {[%clk 0:03:00]} 5. e4 {[%clk 0:02:54]} 5...
d6 {[%clk 0:03:00.5]} 6. Bd3 {[%clk 0:02:45.5]} 6... g6 {[%clk 0:03:00.6]} 7. b3
{[%clk 0:02:40.7]} 7... Bg7 {[%clk 0:02:57]} 8. Bb2 {[%clk 0:02:40.5]} 8... O-O
{[%clk 0:02:57.3]} 9. Nf3 {[%clk 0:02:39.9]} 9... a5 {[%clk 0:02:57.9]} 10. a4
{[%clk 0:02:38]} 10... bxa3 {[%clk 0:02:52.6]} 11. Nxa3 {[%clk 0:02:29.7]} 11...
Na6 {[%clk 0:02:52.7]} 12. Qb1 {[%clk 0:02:12.3]} 12... Nb4 {[%clk 0:02:50.7]}
13. Be2 {[%clk 0:02:11.6]} 13... Bd7 {[%clk 0:02:44.2]} 14. O-O {[%clk
0:02:09.7]} 14... a4 {[%clk 0:02:41.7]} 15. bxa4 {[%clk 0:01:59.5]} 15... Bxa4
{[%clk 0:02:42.6]} 16. e5 {[%clk 0:01:56.3]} 16... Ne8 {[%clk 0:02:27.6]} 17.
exd6 {[%clk 0:01:54]} 17... exd6 {[%clk 0:02:27.7]} 18. Bxg7 {[%clk 0:01:41.5]}
18... Nxg7 {[%clk 0:02:28.6]} 19. Qb2 {[%clk 0:01:38.6]} 19... Nf5 {[%clk
0:02:27.4]} 20. Nb1 {[%clk 0:01:31.7]} 20... Re8 {[%clk 0:02:06.8]} 21. Nc3
{[%clk 0:01:31]} 21... Bc2 {[%clk 0:02:01.8]} 22. Rxa8 {[%clk 0:01:11.1]} 22...
Qxa8 {[%clk 0:02:02.7]} 23. Bd1 {[%clk 0:01:09.2]} 23... Bd3 {[%clk 0:01:59.6]}
24. Re1 {[%clk 0:01:04.2]} 24... Rxe1+ {[%clk 0:01:59.1]} 25. Nxe1 {[%clk
0:01:03.1]} 25... Bxc4 {[%clk 0:01:59.1]} 26. Ne4 {[%clk 0:00:58.8]} 26... Nxd5
{[%clk 0:01:58.2]} 27. Bf3 {[%clk 0:00:46.6]} 27... Nd4 {[%clk 0:01:57]} 28.
Nxd6 {[%clk 0:00:42.4]} 28... Qa5 {[%clk 0:01:43.7]} 29. Qc1 {[%clk 0:00:13.8]}
29... Be2 {[%clk 0:01:40.4]} 30. Bxd5 {[%clk 0:00:12.5]} 30... Ba6 {[%clk
0:01:29.7]} 31. Bf3 {[%clk 0:00:11.2]} 31... Qb4 {[%clk 0:01:24.8]} 32. Qa1
{[%clk 0:00:08.3]} 32... c4 {[%clk 0:01:23.2]} 33. Ne4 {[%clk 0:00:05.8]} 33...
Qb6 {[%clk 0:01:10.6]} 34. h4 {[%clk 0:00:05.1]} 34... f5 {[%clk 0:01:02.6]} 35.
Ng5 {[%clk 0:00:04.2]} 35... Qd6 {[%clk 0:00:59.3]} 36. Qa5 {[%clk 0:00:02.5]}
36... h6 {[%clk 0:00:52.9]} 0-1

[Event "Early-Titled-Tuesday-Blitz-March-26-2024"]
[Site "Chess.com"]
[Date "2024.03.26"]
[Round "5"]
[White "MightyGMpretender"]
[Black "yaguigor"]
[Result "1-0"]
[WhiteElo "2773"]
[BlackElo "2580"]
[TimeControl "180+1"]
[EndTime "8:53:44 PDT"]
[Termination "MightyGMpretender won by resignation"]

1. e4 {[%clk 0:02:59.9]} 1... c5 {[%clk 0:02:53.1]} 2. Nf3 {[%clk 0:02:50.9]}
2... Nc6 {[%clk 0:02:52]} 3. Bb5 {[%clk 0:02:50.4]} 3... Nf6 {[%clk 0:02:50.9]}
4. Nc3 {[%clk 0:02:42.4]} 4... g6 {[%clk 0:02:48.6]} 5. e5 {[%clk 0:02:33.8]}
5... Ng4 {[%clk 0:02:46.3]} 6. Bxc6 {[%clk 0:02:34.2]} 6... dxc6 {[%clk
0:02:45.1]} 7. d3 {[%clk 0:02:31.5]} 7... Bg7 {[%clk 0:02:44.2]} 8. Bf4 {[%clk
0:02:30.8]} 8... Nh6 {[%clk 0:02:41.1]} 9. Qe2 {[%clk 0:02:19.3]} 9... Nf5
{[%clk 0:02:30.8]} 10. Ne4 {[%clk 0:02:18.3]} 10... O-O {[%clk 0:02:29.6]} 11.
O-O {[%clk 0:02:10.1]} 11... Nd4 {[%clk 0:02:24.2]} 12. Nxd4 {[%clk 0:02:09.9]}
12... cxd4 {[%clk 0:02:24.5]} 13. Rae1 {[%clk 0:02:03.1]} 13... h6 {[%clk
0:02:14.7]} 14. Bg3 {[%clk 0:01:59.7]} 14... Bf5 {[%clk 0:02:10.2]} 15. f4
{[%clk 0:01:59.7]} 15... Qd5 {[%clk 0:02:05.3]} 16. b3 {[%clk 0:01:57.7]} 16...
c5 {[%clk 0:02:00.1]} 17. Bh4 {[%clk 0:01:55.4]} 17... f6 {[%clk 0:01:40.8]} 18.
g4 {[%clk 0:01:42.8]} 18... Bxe4 {[%clk 0:01:37.9]} 19. dxe4 {[%clk 0:01:35.5]}
19... Qe6 {[%clk 0:01:36.8]} 20. exf6 {[%clk 0:01:32.8]} 20... exf6 {[%clk
0:01:36.2]} 21. f5 {[%clk 0:01:28.3]} 21... gxf5 {[%clk 0:01:34.6]} 22. exf5
{[%clk 0:01:25.3]} 22... Qxe2 {[%clk 0:01:31.1]} 23. Rxe2 {[%clk 0:01:25.7]}
23... Rfe8 {[%clk 0:01:29.3]} 24. Rfe1 {[%clk 0:01:26.3]} 24... Rxe2 {[%clk
0:01:26.5]} 25. Rxe2 {[%clk 0:01:27.2]} 25... Kf7 {[%clk 0:01:26.6]} 26. Re6
{[%clk 0:01:12.1]} 26... Re8 {[%clk 0:01:11]} 27. Rxe8 {[%clk 0:01:10.4]} 27...
Kxe8 {[%clk 0:01:10.7]} 28. Kf2 {[%clk 0:01:10.6]} 28... Kd7 {[%clk 0:01:04.9]}
29. Kf3 {[%clk 0:01:10.8]} 29... Kc6 {[%clk 0:01:01.9]} 30. Ke4 {[%clk
0:01:11.3]} 30... b5 {[%clk 0:01:01.3]} 31. Bg3 {[%clk 0:01:07.4]} 31... Bf8
{[%clk 0:00:59.8]} 32. Bf4 {[%clk 0:01:07]} 32... a5 {[%clk 0:00:55.6]} 33. a4
{[%clk 0:00:59.2]} 33... bxa4 {[%clk 0:00:31.2]} 34. bxa4 {[%clk 0:00:59.2]}
34... Bg7 {[%clk 0:00:27.8]} 35. Bd2 {[%clk 0:00:59.4]} 35... Bf8 {[%clk
0:00:25.2]} 36. Bxa5 {[%clk 0:00:57.8]} 36... Bd6 {[%clk 0:00:25.1]} 37. h3
{[%clk 0:00:56.6]} 37... Be5 {[%clk 0:00:23.5]} 38. Bd2 {[%clk 0:00:56.8]} 38...
c4 {[%clk 0:00:22.1]} 39. Bxh6 {[%clk 0:00:56.6]} 39... Kc5 {[%clk 0:00:19.1]}
40. Bd2 {[%clk 0:00:55.8]} 40... c3 {[%clk 0:00:17.6]} 41. Bc1 {[%clk
0:00:50.9]} 41... Kc4 {[%clk 0:00:18]} 42. g5 {[%clk 0:00:49.9]} 42... Bd6
{[%clk 0:00:13.4]} 43. g6 {[%clk 0:00:47.9]} 1-0

[Event "Early-Titled-Tuesday-Blitz-March-26-2024"]
[Site "Chess.com"]
[Date "2024.03.26"]
[Round "5"]
[White "sergoy"]
[Black "ajedrezsinlimites"]
[Result "1-0"]
[WhiteElo "2917"]
[BlackElo "2635"]
[TimeControl "180+1"]
[EndTime "8:53:46 PDT"]
[Termination "sergoy won by resignation"]

1. d4 {[%clk 0:03:00.9]} 1... Nf6 {[%clk 0:02:59.4]} 2. c4 {[%clk 0:03:01.5]}
2... e6 {[%clk 0:02:59.8]} 3. Nf3 {[%clk 0:03:02.1]} 3... b6 {[%clk 0:03:00.1]}
4. g3 {[%clk 0:03:01.7]} 4... Bb7 {[%clk 0:03:00.2]} 5. Bg2 {[%clk 0:03:01.6]}
5... Be7 {[%clk 0:03:00.1]} 6. O-O {[%clk 0:03:02.1]} 6... O-O {[%clk 0:03:00]}
7. Re1 {[%clk 0:03:02.8]} 7... d5 {[%clk 0:02:59.8]} 8. cxd5 {[%clk 0:03:02.3]}
8... exd5 {[%clk 0:03:00.7]} 9. Nc3 {[%clk 0:03:02.5]} 9... Nc6 {[%clk
0:02:59.1]} 10. Bf4 {[%clk 0:03:01.1]} 10... Ne4 {[%clk 0:02:55.6]} 11. Rc1
{[%clk 0:02:59.6]} 11... Nxc3 {[%clk 0:02:54.4]} 12. bxc3 {[%clk 0:02:55.9]}
12... Na5 {[%clk 0:02:54.5]} 13. Ne5 {[%clk 0:02:56.1]} 13... f6 {[%clk
0:02:47.9]} 14. Nd3 {[%clk 0:02:54.7]} 14... Nc4 {[%clk 0:02:48.2]} 15. Qc2
{[%clk 0:02:52.4]} 15... Re8 {[%clk 0:02:37.8]} 16. h4 {[%clk 0:02:52]} 16...
Bf8 {[%clk 0:02:14.1]} 17. h5 {[%clk 0:02:52]} 17... a5 {[%clk 0:02:10.8]} 18.
Bd2 {[%clk 0:02:42.5]} 18... Qd7 {[%clk 0:02:07.5]} 19. Nf4 {[%clk 0:02:41.2]}
19... Rad8 {[%clk 0:02:03.6]} 20. Bh3 {[%clk 0:02:40.8]} 20... Qf7 {[%clk
0:01:58.3]} 21. Bf5 {[%clk 0:02:41.4]} 21... Re4 {[%clk 0:01:53.1]} 22. f3
{[%clk 0:02:34.3]} 22... Rxf4 {[%clk 0:01:39.7]} 23. Bxh7+ {[%clk 0:02:29.8]}
23... Kh8 {[%clk 0:01:38.3]} 24. Bxf4 {[%clk 0:02:25.2]} 24... Ba3 {[%clk
0:01:35.2]} 25. Rcd1 {[%clk 0:02:16.4]} 25... Bc6 {[%clk 0:01:15.1]} 26. Bg6
{[%clk 0:02:05.7]} 26... Qd7 {[%clk 0:01:15]} 27. e4 {[%clk 0:01:51.2]} 27...
Ba4 {[%clk 0:01:11.9]} 28. Qh2 {[%clk 0:01:50.5]} 28... Bxd1 {[%clk 0:01:09.3]}
29. Rxd1 {[%clk 0:01:38.1]} 29... dxe4 {[%clk 0:01:04.3]} 30. h6 {[%clk
0:01:28.3]} 30... Kg8 {[%clk 0:01:03.6]} 31. fxe4 {[%clk 0:01:18.6]} 31... Ne5
{[%clk 0:00:49.4]} 32. Bh5 {[%clk 0:01:10]} 32... Nf7 {[%clk 0:00:44.8]} 33. e5
{[%clk 0:00:57.4]} 33... fxe5 {[%clk 0:00:38.8]} 34. Bxf7+ {[%clk 0:00:44.9]}
34... Qxf7 {[%clk 0:00:33.1]} 35. Bxe5 {[%clk 0:00:42.4]} 35... Qg6 {[%clk
0:00:26.4]} 36. hxg7 {[%clk 0:00:39]} 36... Qh7 {[%clk 0:00:26.6]} 37. Qxh7+
{[%clk 0:00:36.6]} 37... Kxh7 {[%clk 0:00:27.5]} 38. Kf2 {[%clk 0:00:36.4]}
38... Rg8 {[%clk 0:00:19.9]} 39. Ke3 {[%clk 0:00:34.8]} 39... Bd6 {[%clk
0:00:18.9]} 40. Rh1+ {[%clk 0:00:32]} 40... Kg6 {[%clk 0:00:18.5]} 41. Rh8
{[%clk 0:00:32.5]} 41... Kf7 {[%clk 0:00:18.2]} 42. Rxg8 {[%clk 0:00:32.6]}
42... Kxg8 {[%clk 0:00:18.6]} 43. Bxd6 {[%clk 0:00:33.3]} 1-0

[Event "Early-Titled-Tuesday-Blitz-March-26-2024"]
[Site "Chess.com"]
[Date "2024.03.26"]
[Round "5"]
[White "nikitakhoroshev"]
[Black "alekroth65"]
[Result "1/2-1/2"]
[WhiteElo "2648"]
[BlackElo "2388"]
[TimeControl "180+1"]
[EndTime "8:53:50 PDT"]
[Termination "Game drawn by repetition"]

1. e4 {[%clk 0:03:00.9]} 1... d6 {[%clk 0:02:59.3]} 2. d4 {[%clk 0:02:59.9]}
2... Nf6 {[%clk 0:02:59.9]} 3. Nc3 {[%clk 0:02:59.8]} 3... g6 {[%clk 0:03:00.3]}
4. f4 {[%clk 0:02:59.9]} 4... Bg7 {[%clk 0:02:59.1]} 5. Nf3 {[%clk 0:02:59.9]}
5... O-O {[%clk 0:02:59.3]} 6. e5 {[%clk 0:03:00]} 6... Nfd7 {[%clk 0:02:56.2]}
7. Bc4 {[%clk 0:02:56.8]} 7... Nb6 {[%clk 0:02:54.2]} 8. Bb3 {[%clk 0:02:56.6]}
8... c5 {[%clk 0:02:52.1]} 9. dxc5 {[%clk 0:02:40.9]} 9... dxc5 {[%clk
0:02:51.1]} 10. Bd5 {[%clk 0:02:35.5]} 10... Nxd5 {[%clk 0:02:43.4]} 11. Nxd5
{[%clk 0:02:32]} 11... Nc6 {[%clk 0:02:25.3]} 12. Be3 {[%clk 0:02:28.7]} 12...
b6 {[%clk 0:02:07.4]} 13. O-O {[%clk 0:02:22.4]} 13... Be6 {[%clk 0:01:55.9]}
14. c4 {[%clk 0:02:21.9]} 14... Nb4 {[%clk 0:01:54.4]} 15. Nxb4 {[%clk
0:02:13.7]} 15... cxb4 {[%clk 0:01:55.3]} 16. Qe2 {[%clk 0:02:12.4]} 16... Qc7
{[%clk 0:01:47.3]} 17. b3 {[%clk 0:02:12.1]} 17... Rfd8 {[%clk 0:01:28.8]} 18.
Rad1 {[%clk 0:02:06.7]} 18... Bg4 {[%clk 0:01:16.4]} 19. h3 {[%clk 0:02:05.1]}
19... Bxf3 {[%clk 0:01:15.7]} 20. Qxf3 {[%clk 0:02:05.3]} 20... e6 {[%clk
0:01:15.9]} 21. Rxd8+ {[%clk 0:01:43.3]} 21... Rxd8 {[%clk 0:01:14.2]} 22. Rd1
{[%clk 0:01:43.2]} 22... Bf8 {[%clk 0:01:08.6]} 23. Kh2 {[%clk 0:01:36.5]} 23...
Bc5 {[%clk 0:00:59.8]} 24. Bxc5 {[%clk 0:01:19.7]} 24... bxc5 {[%clk 0:00:47.8]}
25. h4 {[%clk 0:01:16.1]} 25... h5 {[%clk 0:00:44.1]} 26. Rd3 {[%clk 0:01:12.4]}
26... Kg7 {[%clk 0:00:32.1]} 27. Qd1 {[%clk 0:01:11.4]} 27... Rxd3 {[%clk
0:00:31.6]} 28. Qxd3 {[%clk 0:01:12]} 28... Qa5 {[%clk 0:00:30.8]} 29. Qd2
{[%clk 0:01:11.3]} 29... Qa3 {[%clk 0:00:26.5]} 30. Kg1 {[%clk 0:01:07.2]} 30...
a5 {[%clk 0:00:23.1]} 31. Qc2 {[%clk 0:00:57.7]} 31... a4 {[%clk 0:00:22.1]} 32.
Kh2 {[%clk 0:00:51.7]} 32... axb3 {[%clk 0:00:21.2]} 33. axb3 {[%clk 0:00:51.9]}
33... Qa1 {[%clk 0:00:20.3]} 34. Qd2 {[%clk 0:00:45.3]} 34... Qf1 {[%clk
0:00:17.2]} 35. Kg3 {[%clk 0:00:42.8]} 35... Qb1 {[%clk 0:00:14.9]} 36. Qd8
{[%clk 0:00:41.6]} 36... Qxb3+ {[%clk 0:00:14]} 37. Kh2 {[%clk 0:00:40.2]} 37...
Qxc4 {[%clk 0:00:12.3]} 38. Qf6+ {[%clk 0:00:39.5]} 38... Kg8 {[%clk 0:00:12.2]}
39. Qd8+ {[%clk 0:00:39.5]} 39... Kh7 {[%clk 0:00:12]} 40. Qf6 {[%clk
0:00:36.2]} 40... Kg8 {[%clk 0:00:12.1]} 41. Qd8+ {[%clk 0:00:36.2]} 41... Kg7
{[%clk 0:00:12.4]} 42. Qf6+ {[%clk 0:00:36.1]} 42... Kg8 {[%clk 0:00:12.7]}
1/2-1/2